bitfinex/quotes_ETHUSD_20241130
["timestamp","ask_amount","ask_price","bid_price","bid_amount"]
[1732928227728,0.02755723,3590.4,3589.4,3.0]
[1732928227877,0.02755723,3590.4,3590.1,2.78543]
[1732928228202,0.9526,3590.6,3590.1,2.78543]
[1732928228437,0.9526,3591.0,3590.2,2.78536]
[1732928228602,0.9526,3591.0,3590.7,2.78491]
[1732928228777,0.9526,3591.0,3590.5,2.78512]
[1732928228778,0.02744348,3590.9,3590.8,2.78489]
[1732928229322,0.9526,3591.3,3590.8,2.78489]
[1732928229624,0.9526,3591.3,3590.5,3.0]
[1732928229779,0.9526,3591.3,3591.0,2.78468]
[1732928230324,0.9526,3591.6,3591.1,2.78465]
[1732928230523,0.02743536,3591.2,3591.1,2.78465]
[1732928230819,0.9526,3591.6,3591.5,2.78435]
[1732928231125,0.9526,3592.0,3591.6,2.78427]
[1732928231425,0.9526,3592.0,3591.4,2.78442]
[1732928231621,1.326243,3592.0,3591.5,2.78427]
[1732928231832,2.78416,3591.8,3591.1,2.78463]
[1732928232686,2.78416,3591.8,3590.9,2.78481]
[1732928232885,2.78416,3591.8,3591.2,2.78457]
[1732928234142,2.81201073,3591.7,3591.0,2.78473]
[1732928234322,3.4669268,3591.7,3591.0,2.78473]
[1732928234526,2.81206073,3591.7,3591.1,2.78464]
[1732928234887,2.81206073,3591.7,3590.8,2.78487]
[1732928235133,2.78433,3591.6,3590.9,2.78476]
[1732928235318,2.78437,3591.5,3590.7,5.78492]
[1732928235492,1.23381807,3591.4,3590.7,5.78492]
[1732928236123,0.02777371,3591.3,3590.7,5.78492]
[1732928236529,2.81228371,3591.3,3590.7,2.78492]
[1732928237436,2.78458,3591.2,3590.6,2.78501]
[1732928237932,0.0277523,3591.1,3590.6,2.78501]
[1732928238231,0.0277523,3591.1,3590.5,2.78512]
[1732928238412,0.0277523,3591.1,3590.7,2.78496]
[1732928238732,0.0277523,3591.1,3590.8,0.93501873]
[1732928238915,0.0277523,3591.1,3590.9,0.51945508]
[1732928239116,2.78452,3591.3,3590.7,2.78496]
[1732928239329,0.0277416,3591.0,3590.7,2.78496]
[1732928239532,2.78458,3591.2,3590.5,2.78512]
[1732928239837,2.78458,3591.2,3590.9,0.43301439]
[1732928240134,4.01830807,3591.4,3590.9,0.43301439]
[1732928240287,0.74830389,3591.2,3591.0,0.43301439]
[1732928241035,0.9526,3591.4,3591.0,0.43301439]
[1732928241036,0.54450121,3593.2,3591.6,2.7842]
[1732928241245,0.54450121,3593.2,3591.0,2.57215253]
[1732928241246,0.9206,3593.1,3591.5,6.71138]
[1732928241529,2.78328,3592.9,3592.2,2.78374]
[1732928241693,2.78328,3592.9,3592.3,2.78371]
[1732928241891,0.648706,3592.8,3592.1,2.78382]
[1732928242135,2.78347,3592.7,3592.1,2.78382]
[1732928242295,0.648706,3592.8,3592.1,2.78382]
[1732928242632,0.648706,3592.8,3592.3,2.78367]
[1732928243428,3.432046,3592.8,3592.3,2.78367]
[1732928243629,0.3432046,3592.7,3592.2,2.78379]
[1732928243831,0.9206,3593.1,3591.7,3.0]
[1732928244129,0.9206,3593.1,3592.2,0.9271]
[1732928244437,0.9206,3593.1,3592.6,2.78349]
[1732928245842,0.9206,3593.1,3592.7,2.78341]
[1732928246449,3.73966,3593.7,3592.8,2.78326]
[1732928246752,2.78292,3593.4,3592.8,2.78326]
[1732928247047,2.78296,3593.3,3592.7,2.78341]
[1732928248421,2.78296,3593.3,3592.6,5.78344]
[1732928248658,2.78296,3593.3,3591.9,0.9627]
[1732928248659,0.957,3593.2,3591.9,0.9627]
[1732928248858,0.957,3593.2,3592.8,2.78331]
[1732928249080,0.957,3593.5,3592.7,3.0]
[1732928249229,0.957,3593.5,3593.1,2.78306]
[1732928249429,0.957,3593.5,3593.3,2.78295]
[1732928249863,0.957,3593.5,3593.2,2.78302]
[1732928251071,0.957,3593.8,3593.2,2.78302]
[1732928251375,0.957,3593.8,3593.4,2.78284]
[1732928251536,0.957,3593.8,3593.4,2.78282]
[1732928251871,0.957,3593.8,3593.2,2.78302]
[1732928252031,3.73957,3593.8,3593.2,2.78302]
[1732928252232,2.7827,3593.7,3593.0,2.78316]
[1732928252429,4.391768,3593.8,3593.1,2.78304]
[1732928252670,4.391768,3593.8,3593.2,2.78302]
[1732928252868,1.609198,3593.8,3592.9,2.78324]
[1732928253076,2.78265,3593.7,3593.0,5.78312]
[1732928253367,2.78277,3593.6,3593.0,5.78312]
[1732928253929,3.73957,3593.8,3593.0,5.78312]
[1732928254173,4.39177,3593.8,3593.0,5.78312]
[1732928254338,3.73957,3593.8,3593.1,2.7831]
[1732928254528,3.73957,3593.8,3593.2,2.78302]
[1732928255030,2.78244,3594.0,3593.1,0.9627]
[1732928255361,2.78257,3593.8,3593.1,2.78308]
[1732928255555,3.060827,3593.8,3593.2,2.78303]
[1732928256770,3.060827,3593.8,3593.3,2.78293]
[1732928256771,0.278257,3593.8,3593.3,2.78293]
[1732928257137,3.73926,3594.2,3593.6,2.78271]
[1732928257529,0.957,3594.2,3593.6,2.78271]
[1732928257973,0.957,3594.2,3593.7,2.78263]
[1732928259047,0.957,3594.2,3593.4,3.67045]
[1732928259048,3.73926,3594.2,3593.6,2.78271]
[1732928259436,4.391391,3594.2,3593.4,3.67045]
[1732928259634,4.391391,3594.2,3593.0,3.0]
[1732928259635,2.78239,3594.1,3593.5,2.7828]
[1732928260178,2.78239,3594.1,3593.6,2.78272]
[1732928260558,0.957,3594.2,3593.8,2.78255]
[1732928260757,0.957,3594.2,3593.9,2.78243]
[1732928260943,3.73896,3594.6,3594.0,2.78236]
[1732928261277,1.609081,3594.6,3594.1,2.78228]
[1732928261581,0.957,3594.6,3594.3,2.78216]
[1732928262136,0.957,3594.6,3594.4,2.7821]
[1732928262341,29.0,3595.0,3594.3,2.78216]
[1732928262342,29.957,3595.0,3594.6,2.7819]
[1732928262545,32.73866,3595.0,3594.4,2.78209]
[1732928262758,29.957,3595.0,3594.5,2.78201]
[1732928263548,29.957,3595.0,3594.7,2.78187]
[1732928263897,29.957,3595.0,3594.8,2.78177]
[1732928264054,29.957,3595.0,3594.9,2.78171]
[1732928264251,29.0,3595.0,3594.9,2.78171]
[1732928264479,29.0,3595.0,3594.8,2.78174]
[1732928264801,29.0,3595.0,3594.9,2.78171]
[1732928265086,29.0,3595.0,3594.7,2.78187]
[1732928265286,29.0,3595.0,3594.9,2.78171]
[1732928267777,29.0,3595.0,3594.9,3.68801]
[1732928267978,29.0,3595.0,3594.9,6.68801]
[1732928269602,29.0,3595.0,3594.9,7.23801]
[1732928270200,28.37395186,3595.0,3594.9,7.23801]
[1732928273111,26.98313186,3595.0,3594.9,7.23801]
[1732928276316,26.11370629,3595.0,3594.9,7.23801]
[1732928279410,26.11370629,3595.0,3594.9,2.78171]
[1732928280917,26.11370629,3595.0,3594.9,6.33171]
[1732928281133,26.11370629,3595.0,3594.9,7.21181]
[1732928285315,25.48768566,3595.0,3594.9,7.21181]
[1732928285514,25.48768566,3595.0,3594.9,7.35378961]
[1732928287204,24.61824215,3595.0,3594.9,7.35378961]
[1732928287615,21.83660215,3595.0,3594.9,7.35378961]
[1732928288978,21.83660215,3595.0,3594.9,7.21181]
[1732928289223,21.83660215,3595.0,3594.9,5.78171]
[1732928290490,21.83660215,3595.0,3594.9,6.33171]
[1732928290907,21.83660215,3595.0,3594.9,7.22601]
[1732928293333,17.1694334,3595.0,3594.9,7.22601]
[1732928293621,8.26989134,3595.0,3594.9,10.15601]
[1732928293835,7.80562677,3595.0,3594.9,10.15601]
[1732928295223,2.24234677,3595.0,3594.9,10.15601]
[1732928295397,6.77e-06,3595.0,3594.9,10.30309265]
[1732928295581,0.9309,3596.1,3596.0,2.78086]
[1732928296384,0.9309,3596.1,3596.0,5.78086]
[1732928297829,0.9309,3596.1,3595.9,5.78094]
[1732928298125,0.9309,3596.1,3595.9,3.0]
[1732928298336,0.9309,3596.1,3595.9,5.78089]
[1732928298644,0.9309,3596.1,3596.0,3.0]
[1732928298998,0.9309,3596.1,3595.9,2.78087]
[1732928299336,0.9309,3596.1,3596.0,2.78086]
[1732928300203,0.3049476,3596.1,3596.0,2.78086]
[1732928300706,2.78011,3597.0,3596.3,2.78062]
[1732928300913,0.556006,3596.9,3596.3,2.78062]
[1732928302000,3.336186,3596.9,3596.1,5.56149]
[1732928302208,2.78026,3596.8,3596.0,3.0]
[1732928302454,3.336226,3596.9,3596.0,3.0]
[1732928302603,2.78022,3596.9,3596.2,2.7807]
[1732928302797,2.78033,3596.7,3596.0,5.78081]
[1732928303228,0.9309,3597.3,3596.0,3.0]
[1732928303436,0.9309,3597.3,3595.5,2.78125]
[1732928303437,0.9309,3596.8,3596.1,2.78073]
[1732928303614,0.9309,3596.8,3596.2,2.7807]
[1732928303948,0.9309,3596.6,3596.2,2.78069]
[1732928305664,0.9309,3596.6,3596.1,2.78073]
[1732928306041,0.8809,3596.6,3596.1,2.78073]
[1732928306941,0.8309,3596.6,3596.1,2.78073]
[1732928307852,0.7809,3596.6,3596.1,2.78073]
[1732928308894,0.7309,3596.6,3596.1,2.78073]
[1732928309397,0.6662583,3596.6,3594.8,0.9546]
[1732928309600,0.6662583,3596.6,3594.8,2.78177]
[1732928309601,2.78122,3595.6,3594.8,2.78177]
[1732928309813,2.7813,3595.5,3594.8,2.78177]
[1732928309952,2.7313,3595.5,3594.9,2.78171]
[1732928310353,2.78073,3596.2,3594.3,3.3363492]
[1732928310667,2.78135,3595.4,3594.8,2.78174]
[1732928311795,2.78122,3595.6,3594.9,2.78169]
[1732928311976,2.78122,3595.6,3594.8,2.78174]
[1732928311977,0.9659,3595.5,3595.0,2.78163]
[1732928312384,3.74716,3595.5,3594.8,2.78174]
[1732928313073,0.9659,3595.5,3595.3,0.43193286]
[1732928313268,0.9659,3595.5,3595.2,0.43193286]
[1732928313467,0.9659,3595.5,3595.1,0.43193286]
[1732928313801,0.9659,3595.5,3595.2,0.43193286]
[1732928314091,0.9659,3595.5,3595.1,0.43193286]
[1732928314498,0.9659,3595.5,3595.1,3.21348286]
[1732928314793,0.9659,3595.5,3595.3,0.43193286]
[1732928315004,0.9659,3595.5,3594.5,3.0]
[1732928315005,0.9659,3595.5,3594.7,0.9546]
[1732928315197,2.78087,3596.0,3595.4,2.78133]
[1732928315409,0.9659,3595.9,3595.6,0.43159792]
[1732928315558,3.74686,3595.9,3595.6,0.43159792]
[1732928315756,1.618673,3595.9,3595.4,0.43159792]
[1732928316074,0.9659,3595.8,3595.4,0.43159792]
[1732928316282,3.74697,3595.8,3595.4,0.43159792]
[1732928316486,3.74697,3595.8,3595.3,0.43159792]
[1732928316687,3.74697,3595.8,3595.4,0.43159792]
[1732928316909,3.74697,3595.8,3595.3,0.43159792]
[1732928317869,3.74697,3595.8,3595.4,0.43159792]
[1732928318489,3.74697,3595.8,3595.4,0.43139427]
[1732928318879,3.74697,3595.8,3595.3,0.43139427]
[1732928319215,0.9659,3595.8,3595.5,0.43139427]
[1732928319422,2.78117,3595.6,3595.5,0.43139427]
[1732928319707,1.1759,3595.3,3595.0,0.43139427]
[1732928320278,3.95731,3595.3,3594.9,0.43139427]
[1732928320884,3.90731,3595.3,3594.9,0.43139427]
[1732928321088,2.78154,3595.2,3595.0,0.94886369]
[1732928321301,1.1259,3595.3,3595.1,0.51746942]
[1732928321518,1.1259,3595.3,3595.2,0.51746942]
[1732928321718,1.1259,3595.3,3595.1,0.51746942]
[1732928321891,1.0759,3595.3,3595.1,0.51737781]
[1732928322087,1.0759,3595.3,3595.0,0.43114818]
[1732928322579,1.0759,3595.3,3595.1,0.43114818]
[1732928322926,1.0259,3595.3,3595.2,2.78148]
[1732928323823,2.78102,3595.8,3595.0,2.78162]
[1732928324030,2.7811,3595.7,3595.4,0.43093693]
[1732928324203,2.7811,3595.7,3595.0,2.78156]
[1732928324204,2.78119,3595.6,3595.3,0.43093693]
[1732928325188,2.73119,3595.6,3595.3,0.43097118]
[1732928325609,2.78101,3595.9,3595.3,0.43097118]
[1732928325934,1.2485,3595.7,3595.3,0.43097118]
[1732928326233,2.78117,3595.6,3595.3,0.43097118]
[1732928326989,2.7814,3595.3,3595.2,0.43097118]
[1732928327327,2.78091,3596.0,3594.7,2.78187]
[1732928327328,2.78133,3595.4,3595.1,0.43097118]
[1732928327566,2.78133,3595.4,3595.0,0.43097118]
[1732928327731,2.78117,3595.6,3595.0,0.43097118]
[1732928327933,2.78117,3595.6,3595.1,0.43097118]
[1732928328223,2.78072,3596.2,3595.2,0.43097118]
[1732928328430,2.78095,3595.9,3595.3,0.43097118]
[1732928328634,2.78114,3595.7,3595.3,0.43097118]
[1732928329190,1.2485,3595.6,3595.4,0.51712706]
[1732928329398,1.2485,3595.6,3595.5,0.51712706]
[1732928329626,1.2485,3595.6,3595.5,0.94811752]
[1732928330531,1.2485,3595.9,3595.5,0.51712706]
[1732928330737,1.2485,3596.3,3595.8,0.43093289]
[1732928330943,2.78086,3596.0,3595.9,0.94802715]
[1732928331105,4.02936,3596.0,3595.9,0.51712706]
[1732928331428,4.02936,3596.0,3595.6,0.43093687]
[1732928331630,4.02936,3596.0,3595.7,0.51712706]
[1732928331931,2.78094,3595.9,3595.8,0.94820201]
[1732928332122,1.2485,3596.0,3595.8,0.5172011]
[1732928332322,1.2485,3596.0,3595.9,0.5172011]
[1732928332697,4.02936,3596.0,3595.9,0.5172011]
[1732928334643,2.78073,3596.2,3595.9,0.5172011]
[1732928334938,1.2485,3596.3,3595.9,0.5172011]
[1732928334939,2.78079,3596.1,3596.0,0.5172011]
[1732928335097,1.2485,3596.3,3596.0,0.5172011]
[1732928335301,1.2485,3596.3,3596.1,0.94820201]
[1732928335538,1.2485,3596.3,3596.2,0.94820201]
[1732928336399,1.2485,3596.3,3596.2,0.5172011]
[1732928336735,1.2485,3596.3,3596.2,0.94820201]
[1732928337100,1.2485,3596.3,3596.1,0.43100091]
[1732928338910,1.2485,3596.3,3596.2,0.43100091]
[1732928339112,1.2485,3596.3,3595.9,2.78093]
[1732928339312,1.2485,3596.3,3596.0,3.29845494]
[1732928339520,4.02843,3596.7,3596.1,3.29834494]
[1732928339845,2.78041,3596.6,3596.5,0.43125199]
[1732928340143,2.58041,3596.6,3596.5,0.94886693]
[1732928340435,1.2481,3596.7,3596.5,0.51761494]
[1732928340601,1.2481,3596.7,3596.6,0.51761494]
[1732928340801,2.78026,3596.8,3596.6,0.94886693]
[1732928341000,2.78026,3596.8,3596.7,0.51761494]
[1732928341960,2.78018,3596.9,3596.7,0.51761494]
[1732928342242,2.78018,3596.9,3596.8,0.51761494]
[1732928343518,4.0282,3597.0,3596.8,0.51761494]
[1732928343857,4.0282,3597.0,3596.6,0.43125199]
[1732928343858,4.0282,3597.0,3596.9,0.51761494]
[1732928344143,2.78022,3596.9,3596.7,0.51761494]
[1732928344453,2.78022,3596.9,3596.8,0.51761494]
[1732928345414,2.78022,3596.9,3596.6,0.51761494]
[1732928345619,2.78022,3596.9,3596.7,0.51761494]
[1732928345946,2.78022,3596.9,3596.8,0.51761494]
[1732928346246,2.78022,3596.9,3596.6,0.51761494]
[1732928346546,2.78022,3596.9,3596.7,0.51761494]
[1732928346720,2.78022,3596.9,3596.8,0.51761494]
[1732928346921,2.78022,3596.9,3596.6,0.51761494]
[1732928347122,2.78022,3596.9,3596.7,0.51761494]
[1732928347328,2.78022,3596.9,3596.8,0.51761494]
[1732928347520,2.78027,3596.8,3596.6,0.51761494]
[1732928347735,2.78048,3596.5,3596.4,0.43125199]
[1732928347950,2.78055,3596.4,3596.3,0.43125199]
[1732928348247,2.78055,3596.4,3594.4,0.2786]
[1732928348248,4.01222,3595.8,3595.5,0.43125199]
[1732928348449,4.01222,3595.8,3594.4,3.9579]
[1732928348450,2.78125,3595.5,3595.4,0.43125199]
[1732928348647,4.01225,3595.8,3595.4,0.5173792]
[1732928348804,4.01225,3595.8,3594.4,1.1758]
[1732928348805,2.78117,3595.6,3595.5,0.5173792]
[1732928349006,2.78133,3595.4,3595.3,0.5173792]
[1732928349223,2.78133,3595.4,3595.1,0.43125199]
[1732928351213,2.78148,3595.2,3595.1,0.43125199]
[1732928351546,2.78148,3595.2,3595.1,0.5175276]
[1732928352342,2.78133,3595.4,3595.1,0.5175276]
[1732928352513,2.78133,3595.4,3595.2,0.94879472]
[1732928352713,2.7814,3595.3,3595.2,0.43126712]
[1732928353023,2.7814,3595.3,3595.2,0.94877066]
[1732928353351,2.7814,3595.3,3595.2,0.51750354]
[1732928354318,2.7814,3595.3,3595.2,0.5174408]
[1732928354520,4.568866,3595.3,3595.2,0.5174408]
[1732928354754,2.78148,3595.2,3595.1,0.5174408]
[1732928354958,4.568866,3595.3,3594.5,2.78202]
[1732928354959,2.78156,3595.1,3595.0,0.5174408]
[1732928355560,2.78164,3595.0,3594.9,0.5174408]
[1732928355855,2.78171,3594.9,3594.7,0.43120067]
[1732928356067,0.679416,3595.1,3594.8,0.51754157]
[1732928356266,2.78157,3595.1,3594.9,0.51754157]
[1732928356449,2.78164,3595.0,3594.9,0.51754157]
[1732928356620,2.78164,3595.0,3594.8,0.51754157]
[1732928356821,2.78164,3595.0,3594.9,0.51754157]
[1732928357016,2.78164,3595.0,3594.8,0.51754157]
[1732928357216,2.78171,3594.9,3594.8,0.51737358]
[1732928357456,2.78179,3594.8,3594.7,0.51737358]
[1732928358322,2.78192,3594.7,3594.2,1.1758]
[1732928359423,2.78192,3594.7,3594.5,0.43106271]
[1732928359663,2.78195,3594.6,3594.5,0.43106271]
[1732928360164,1.2312,3594.7,3593.9,1.1758]
[1732928360165,1.2312,3594.7,3594.1,2.78233]
[1732928360365,2.78183,3594.8,3594.1,2.78233]
[1732928360366,2.78183,3594.8,3594.3,2.78218]
[1732928360524,4.01287,3595.0,3594.3,2.78218]
[1732928360879,2.78172,3594.9,3594.3,2.78218]
[1732928361363,2.78172,3594.9,3594.1,2.78233]
[1732928361364,2.78172,3594.9,3594.4,2.7821]
[1732928361520,1.2312,3595.0,3594.4,2.7821]
[1732928361974,2.78165,3595.0,3594.5,1.1758]
[1732928362470,2.78192,3594.7,3594.6,0.77576251]
[1732928362629,4.01312,3594.7,3594.6,0.6723275]
[1732928364375,4.01312,3594.7,3594.6,0.6718303]
[1732928364530,1.2312,3594.7,3594.6,0.6718303]
[1732928364866,2.78179,3594.8,3594.6,0.6718303]
[1732928365164,2.78179,3594.8,3594.7,0.6718303]
[1732928366600,4.38465375,3595.0,3594.7,0.6718303]
[1732928366763,4.01285,3595.0,3594.8,0.6718303]
[1732928366958,4.01285,3595.0,3594.4,2.78209]
[1732928366959,2.78165,3595.0,3594.9,0.6718303]
[1732928367277,5.56304,3595.2,3594.9,0.25839627]
[1732928367464,5.56304,3595.2,3595.0,0.6718303]
[1732928367665,2.7815,3595.2,3595.1,0.6718303]
[1732928368101,2.7815,3595.2,3595.1,0.25839627]
[1732928369501,3.462999,3595.2,3595.1,0.25839627]
[1732928373134,2.78148,3595.2,3595.1,0.6718303]
[1732928374619,2.78148,3595.2,3595.1,0.67264676]
[1732928377317,4.03358,3595.2,3595.1,0.67264676]
[1732928377686,1.2521,3595.2,3595.1,0.41551651]
[1732928377890,4.03358,3595.2,3595.1,0.67521432]
[1732928378201,5.51092448,3595.2,3595.1,0.67521432]
[1732928379027,5.25043325,3595.2,3595.1,0.67521432]
[1732928379334,5.51095983,3595.2,3595.1,0.67521432]
[1732928381042,5.25043325,3595.2,3594.0,1.1713]
[1732928381266,5.25043325,3595.2,3593.6,3.0]
[1732928381267,2.78231,3594.2,3594.1,0.67541051]
[1732928383852,4.03441,3594.2,3594.1,0.67541051]
[1732928386494,4.03441,3594.2,3594.1,0.25977327]
[1732928391197,4.03436,3594.2,3594.1,0.25917928]
[1732928391499,4.99423,3594.2,3594.1,0.25917928]
[1732928396796,6.20306713,3594.2,3594.1,0.25917928]
[1732928397695,4.95096713,3594.2,3594.1,0.25917928]
[1732928397927,4.95096713,3594.2,3594.1,0.67383659]
[1732928400708,6.20856713,3594.2,3594.1,0.67383659]
[1732928400912,6.20856713,3594.2,3594.1,0.25917928]
[1732928402439,2.78272,3593.6,3593.5,0.41493959]
[1732928402600,3.99155713,3593.6,3593.5,0.67429467]
[1732928402954,5.24915713,3593.6,3593.5,0.67429467]
[1732928403119,6.05233584,3593.6,3593.5,0.67429467]
[1732928403313,6.05233584,3593.6,3593.5,0.25935508]
[1732928403529,2.78349,3592.6,3592.5,1.2048]
[1732928403835,2.78349,3592.6,3592.5,0.67461872]
[1732928404341,3.73940471,3592.6,3592.5,0.67461872]
[1732928406917,2.78386,3592.2,3592.0,1.2088]
[1732928407119,2.78386,3592.2,3592.1,0.67520016]
[1732928408458,2.78364,3592.5,3592.1,0.67520016]
[1732928408622,2.78364,3592.5,3592.0,1.2088]
[1732928408623,2.7835,3592.6,3592.3,1.2088]
[1732928408813,2.78348,3592.7,3592.4,0.67520016]
[1732928409018,2.78348,3592.7,3592.5,0.67520016]
[1732928409215,4.562459,3592.7,3592.6,0.67520016]
[1732928410365,2.78348,3592.7,3592.6,0.67520016]
[1732928410788,2.78348,3592.7,3592.6,1.88400016]
[1732928411604,2.78333,3592.9,3592.6,1.88400016]
[1732928411803,2.78333,3592.9,3592.7,0.67520016]
[1732928411804,2.78339,3592.8,3592.7,0.67520016]
[1732928413095,4.00569,3592.8,3592.7,0.67520016]
[1732928413410,4.684592,3592.8,3592.7,0.25969237]
[1732928416461,3.462292,3592.8,3592.7,0.25969237]
[1732928416667,4.2223,3593.1,3591.9,1.2088]
[1732928416908,4.2223,3593.1,3591.8,2.78411]
[1732928416909,2.78318,3593.0,3592.7,0.25969403]
[1732928417199,2.78318,3593.0,3591.0,0.70312621]
[1732928417200,2.78326,3592.9,3592.8,0.67520448]
[1732928417405,2.78326,3592.9,3592.8,0.25969403]
[1732928419407,2.78326,3592.9,3592.8,0.67525341]
[1732928419572,2.78326,3592.9,3592.8,0.25969403]
[1732928420778,2.78365,3592.4,3592.3,0.41568967]
[1732928420983,2.78365,3592.4,3592.3,0.67551944]
[1732928421507,2.78404,3591.9,3591.8,1.2502]
[1732928421730,2.78404,3591.9,3591.8,1.9257408]
[1732928422519,2.78404,3591.9,3591.8,1.92575397]
[1732928422818,2.7835,3592.6,3591.8,2.44540672]
[1732928422966,2.78401,3592.0,3591.8,2.44540672]
[1732928423920,2.78404,3591.9,3591.8,1.2502]
[1732928424271,2.78397,3592.0,3591.8,1.76990757]
[1732928424515,2.78365,3592.5,3591.9,1.19532741]
[1732928424670,2.78365,3592.5,3592.1,1.2502]
[1732928425187,2.7838,3592.3,3592.1,1.2502]
[1732928426173,2.78365,3592.5,3592.1,1.2502]
[1732928426174,2.78366,3592.4,3592.1,1.2502]
[1732928426981,2.7838,3592.3,3592.1,1.2502]
[1732928427212,2.7836,3592.5,3592.1,1.2502]
[1732928427407,2.78372,3592.4,3592.1,1.2502]
[1732928427608,2.78379,3592.3,3592.1,1.2502]
[1732928428473,2.7836,3592.5,3592.1,1.2502]
[1732928428669,2.7836,3592.5,3592.2,0.55]
[1732928429104,2.78329,3592.9,3592.4,0.55]
[1732928429288,2.78329,3592.9,3592.5,1.2015]
[1732928430021,2.78314,3593.1,3592.5,1.2015]
[1732928430375,2.78326,3592.9,3592.5,1.2015]
[1732928430577,0.88971069,3593.5,3592.5,1.2015]
[1732928430774,2.78349,3592.6,3592.5,1.2015]
[1732928430978,2.78396,3592.0,3591.9,1.2015]
[1732928432928,2.78418,3591.8,3591.2,0.55]
[1732928433217,2.78418,3591.8,3591.2,3.98603]
[1732928433375,2.78418,3591.8,3591.4,0.55]
[1732928434087,2.7838,3592.2,3591.3,0.55]
[1732928434298,2.7842,3591.7,3591.3,0.55]
[1732928434802,0.02789513,3591.8,3591.3,0.55]
[1732928435810,2.81202513,3591.8,3591.3,0.55]
[1732928437622,2.78413,3591.8,3591.3,3.3345]
[1732928438516,3.97266,3592.9,3591.9,1.2015]
[1732928438717,2.78379,3592.3,3591.9,1.2015]
[1732928439227,2.78382,3592.2,3591.9,1.2015]
[1732928439646,2.7837,3592.4,3591.9,1.2015]
[1732928439944,2.7837,3592.4,3592.1,1.2015]
[1732928440939,1.1894,3593.2,3592.2,0.55]
[1732928441105,2.78325,3593.0,3592.5,1.2015]
[1732928441514,2.78304,3593.2,3592.8,0.55]
[1732928441715,0.02789513,3593.1,3592.8,0.55]
[1732928441938,2.7832,3593.0,3592.8,0.55]
[1732928442138,0.02789513,3592.9,3592.8,0.55]
[1732928442351,2.81115513,3592.9,3592.8,0.55]
[1732928442559,0.02789513,3592.9,3592.8,0.55]
[1732928442709,0.02789513,3593.1,3592.8,0.55]
[1732928443545,2.81104513,3593.1,3592.8,0.55]
[1732928443739,0.02789513,3593.1,3592.8,0.55]
[1732928443909,2.78319,3593.0,3592.8,0.55]
[1732928445750,2.81115513,3592.9,3592.8,0.55]
[1732928446640,2.81115513,3592.9,3592.5,0.55]
[1732928446842,2.78349,3592.6,3592.5,0.55]
[1732928447211,0.02789513,3592.7,3592.2,1.2719]
[1732928447557,2.78373,3592.3,3591.8,1.2719]
[1732928448541,2.78386,3592.2,3592.0,0.55]
[1732928448748,2.78386,3592.2,3591.9,0.55]
[1732928452120,2.78366,3592.4,3591.9,0.55]
[1732928452521,2.78374,3592.3,3591.9,0.55]
[1732928453649,2.78353,3592.6,3591.9,0.55]
[1732928453860,2.78366,3592.4,3591.9,0.55]
[1732928454563,2.81162513,3592.3,3591.9,0.55]
[1732928455614,2.78378,3592.3,3591.9,0.55]
[1732928456062,2.81167513,3592.3,3591.9,0.55]
[1732928456423,0.02789513,3592.3,3591.9,0.55]
[1732928456622,2.78396,3592.0,3591.8,1.2719]
[1732928456857,2.78404,3591.9,3591.8,1.2719]
[1732928457064,2.78413,3591.8,3591.6,1.2719]
[1732928457360,2.78396,3592.0,3591.6,1.2719]
[1732928457547,2.78416,3591.8,3591.6,1.2719]
[1732928457854,2.78396,3592.0,3591.6,1.2719]
[1732928458055,2.78396,3592.0,3591.7,0.55]
[1732928458561,2.78404,3591.9,3591.7,0.55]
[1732928458862,2.78396,3592.0,3591.7,0.55]
[1732928459029,2.78411,3591.8,3591.7,0.55]
[1732928460780,2.78435,3591.5,3590.8,1.2719]
[1732928461076,2.78481,3590.9,3590.8,1.2719]
[1732928461279,2.78495,3590.8,3590.2,4.05725]
[1732928461578,2.78481,3590.9,3590.2,4.05725]
[1732928461579,2.78497,3590.7,3590.2,4.05725]
[1732928462135,2.78505,3590.6,3590.2,1.2719]
[1732928463097,2.78489,3590.8,3590.2,4.05725]
[1732928463246,2.78498,3590.7,3590.2,4.05725]
[1732928463648,2.78498,3590.7,3590.3,0.55]
[1732928464633,2.78482,3590.9,3590.3,0.55]
[1732928465381,2.78501,3590.7,3590.3,0.55]
[1732928466675,2.81295513,3590.6,3590.3,0.55]
[1732928466878,0.02789513,3590.6,3590.3,0.55]
[1732928467076,2.78513,3590.5,3590.3,0.55]
[1732928467280,0.55980351,3590.5,3589.8,1.2585]
[1732928467483,2.7852,3590.4,3589.8,1.0585]
[1732928467778,2.78537,3590.2,3589.8,1.0585]
[1732928468684,2.78551,3590.0,3589.9,0.55]
[1732928468894,2.78536,3590.2,3589.9,0.55]
[1732928469751,0.02789513,3590.1,3589.9,0.55]
[1732928469982,2.78551,3590.0,3589.6,0.55]
[1732928470288,0.02789513,3590.1,3589.2,2.78611]
[1732928470289,2.78559,3589.9,3589.4,0.55]
[1732928470493,2.78559,3589.9,3589.6,0.55]
[1732928471184,0.02789513,3590.0,3589.6,0.55]
[1732928471357,2.81341513,3590.0,3589.6,0.55]
[1732928472997,0.58777464,3590.0,3589.2,1.2585]
[1732928473151,1.2296,3590.1,3589.2,1.2585]
[1732928473152,2.78583,3589.6,3589.2,1.2585]
[1732928473873,2.78576,3589.7,3589.2,1.2585]
[1732928474189,2.78567,3589.8,3589.2,1.2585]
[1732928474190,2.78585,3589.6,3589.2,1.2585]
[1732928474401,2.78585,3589.6,3589.3,0.55]
[1732928475153,2.78591,3589.5,3589.3,0.55]
[1732928476201,2.81387513,3589.4,3589.3,0.55]
[1732928476895,2.78605,3589.3,3588.9,0.55]
[1732928477105,0.02789513,3589.2,3588.9,0.55]